bitfinex/quotes_SOLUSD_20240708
["timestamp","ask_amount","ask_price","bid_price","bid_amount"]
[1720414720919,100.0,133.58,133.55,20.0]
[1720414721237,100.0,133.58,133.54,37.65]
[1720414721446,100.0,133.56,133.54,37.65]
[1720414721807,100.0,133.56,133.52,6.54474051]
[1720414722049,100.0,133.56,133.52,44.19474051]
[1720414723144,100.0,133.58,133.52,44.19474051]
[1720414723751,100.0,133.58,133.53,20.0]
[1720414724053,100.0,133.58,133.54,37.65]
[1720414724250,100.0,133.58,133.55,20.0]
[1720414724634,100.0,133.58,133.54,37.65]
[1720414724837,100.0,133.58,133.55,20.0]
[1720414725036,100.0,133.56,133.55,20.0]
[1720414725438,100.0,133.54,133.53,20.0]
[1720414725660,100.0,133.56,133.53,20.0]
[1720414725846,100.0,133.56,133.52,20.0]
[1720414726227,115.5371,133.62,133.55,37.65]
[1720414726427,115.5371,133.62,133.56,20.0]
[1720414726656,115.5371,133.62,133.57,82.65]
[1720414726860,100.0,133.59,133.58,20.0]
[1720414727173,100.0,133.59,133.58,65.0]
[1720414728458,100.0,133.59,133.58,45.0]
[1720414728633,100.0,133.61,133.57,45.0]
[1720414728840,100.0,133.61,133.58,20.0]
[1720414729136,100.0,133.61,133.59,45.0]
[1720414732859,15.5371,133.62,133.59,45.0]
[1720414733144,100.0,133.63,133.59,45.0]
[1720414733333,100.0,133.63,133.6,20.0]
[1720414733536,100.0,133.63,133.61,45.0]
[1720414735185,100.0,133.59,133.55,43.5413955]
[1720414735465,100.0,133.57,133.56,20.0]
[1720414735636,100.0,133.57,133.52,15.27944512]
[1720414735842,100.0,133.57,133.54,37.65]
[1720414736235,100.0,133.59,133.54,37.65]
[1720414736638,100.0,133.61,133.58,37.65]
[1720414737541,100.0,133.61,133.59,20.0]
[1720414738259,100.0,133.58,133.55,6.54474051]
[1720414738571,100.0,133.56,133.52,6.07086153]
[1720414738860,100.0,133.56,133.51,6.64474051]
[1720414740159,100.0,133.57,133.51,6.64474051]
[1720414740364,100.0,133.57,133.52,6.54474051]
[1720414740550,100.0,133.57,133.52,8.59815477]
[1720414741667,100.0,133.57,133.53,20.0]
[1720414742340,100.0,133.59,133.53,20.0]
[1720414742545,16.3947,133.6,133.54,6.54474051]
[1720414742843,100.0,133.58,133.55,20.0]
[1720414743539,16.3947,133.6,133.55,20.0]
[1720414743540,100.0,133.56,133.55,20.0]
[1720414743939,100.0,133.56,133.52,20.0]
[1720414744336,100.0,133.54,133.52,20.0]
[1720414744563,100.0,133.56,133.52,20.0]
[1720414745076,100.0,133.58,133.52,20.0]
[1720414745367,100.0,133.56,133.52,20.0]
[1720414745976,100.0,133.54,133.51,21.50161652]
[1720414746567,100.0,133.56,133.51,21.50161652]
[1720414747149,100.0,133.54,133.51,21.50161652]
[1720414747458,100.0,133.54,133.52,20.0]
[1720414747952,6.3726,133.57,133.51,0.1]
[1720414747953,100.0,133.52,133.51,0.1]
[1720414749884,116.3947,133.6,133.52,16.1256]
[1720414750168,106.3382,133.61,133.53,64.73319148]
[1720414750467,106.3382,133.61,133.54,6.54474051]
[1720414750764,100.0,133.59,133.55,20.0]
[1720414751372,6.3382,133.61,133.55,20.0]
[1720414751373,100.0,133.57,133.55,20.0]
[1720414751577,100.0,133.55,133.53,20.0]
[1720414752547,100.0,133.55,133.51,20.1]
[1720414753054,100.0,133.53,133.51,0.1]
[1720414755858,100.0,133.55,133.51,0.1]
[1720414756073,100.0,133.57,133.51,0.1]
[1720414756376,100.0,133.57,133.52,22.01464051]
[1720414756555,100.0,133.57,133.53,20.0]
[1720414757273,100.0,133.59,133.53,20.0]
[1720414757459,22.859,133.61,133.53,20.0]
[1720414757460,100.0,133.55,133.53,20.0]
[1720414758484,100.0,133.53,133.51,20.1]
[1720414758652,100.0,133.53,133.51,0.1]
[1720414760180,100.0,133.53,133.51,20.1]
[1720414760860,100.0,133.53,133.51,0.1]
[1720414762882,100.0,133.55,133.51,0.1]
[1720414764281,22.2989,133.56,133.51,0.1]
[1720414764282,100.0,133.52,133.51,0.1]
[1720414764484,100.0,133.54,133.51,0.1]
[1720414765559,100.0,133.52,133.51,0.1]
[1720414767283,22.2989,133.56,133.51,0.1]
[1720414767284,100.0,133.54,133.51,0.1]
[1720414767479,100.0,133.54,133.52,37.81]
[1720414767786,100.0,133.54,133.53,20.0]
[1720414768357,22.2989,133.56,133.51,0.1]
[1720414768585,22.2989,133.56,133.51,20.1]
[1720414768586,100.0,133.52,133.51,20.1]
[1720414770768,22.6442,133.51,133.5,0.8725608]
[1720414770967,22.8142,133.51,133.5,0.8725608]
[1720414773166,100.0,133.52,133.5,0.8725608]
[1720414775006,100.0,133.54,133.5,0.8725608]
[1720414775287,6.3003,133.56,133.51,37.81]
[1720414775497,6.3003,133.56,133.52,20.0]
[1720414775798,100.0,133.53,133.52,20.0]
[1720414778790,100.0,133.53,133.5,0.8725608]
[1720414779023,100.0,133.55,133.5,0.8725608]
[1720414779692,100.0,133.53,133.5,0.8725608]
[1720414779991,100.0,133.51,133.5,0.8725608]
[1720414793276,100.0,133.54,133.5,0.8725608]
[1720414793606,100.0,133.54,133.5,20.8725608]
[1720414793806,100.0,133.54,133.51,45.0]
[1720414793980,100.0,133.54,133.52,20.0]
[1720414794174,100.0,133.54,133.53,45.0]
[1720414794382,100.0,133.54,133.53,65.0]
[1720414799483,22.049,133.56,133.53,65.0]
[1720414799683,15.7487,133.56,133.53,65.0]
[1720414799879,115.7487,133.56,133.53,65.0]
[1720414800415,100.0,133.54,133.53,65.0]
[1720414801180,100.0,133.58,133.53,65.0]
[1720414801402,6.5416,133.64,133.57,37.8]
[1720414801614,6.5416,133.64,133.59,37.8]
[1720414801780,115.1303,133.65,133.61,37.8]
[1720414801987,6.5416,133.68,133.63,37.8]
[1720414802200,6.5416,133.68,133.64,20.0]
[1720414802411,100.0,133.67,133.64,20.0]
[1720414802619,100.0,133.61,133.55,22.19879972]
[1720414802781,100.0,133.59,133.56,20.0]
[1720414803110,100.0,133.59,133.54,37.8]
[1720414803317,100.0,133.59,133.55,20.0]
[1720414803611,100.0,133.57,133.51,22.19879972]
[1720414803816,100.0,133.57,133.51,28.03129638]
[1720414803995,100.0,133.55,133.51,12.36569638]
[1720414804194,100.0,133.53,133.5,0.8725608]
[1720414805911,100.0,133.51,133.5,0.8725608]
[1720414806213,116.0085,133.58,133.5,38.6725608]
[1720414806395,116.0085,133.58,133.52,37.8]
[1720414807316,116.0085,133.58,133.53,20.0]
[1720414807697,100.0,133.56,133.53,20.0]
[1720414808417,100.0,133.54,133.53,20.0]
[1720414810392,100.0,133.56,133.53,20.0]
[1720414811786,100.0,133.54,133.53,20.0]
[1720414811987,100.0,133.54,133.5,0.8725608]
[1720414811988,100.0,133.52,133.5,0.8725608]
[1720414812518,0.17,133.51,133.5,0.8725608]
[1720414815319,100.0,133.45,133.41,37.9]
[1720414815897,100.0,133.43,133.41,37.9]
[1720414817703,100.0,133.43,133.42,20.0]
[1720414817909,100.0,133.43,133.41,20.1]
[1720414818315,100.0,133.45,133.41,20.1]
[1720414819400,100.0,133.45,133.42,37.8]
[1720414819591,100.0,133.45,133.43,20.0]
[1720414819794,100.0,133.47,133.41,20.1]
[1720414820320,100.0,133.44,133.41,20.1]
[1720414820895,100.0,133.42,133.41,20.1]
[1720414821321,100.0,133.44,133.41,20.1]
[1720414822429,100.0,133.47,133.41,20.1]
[1720414822798,100.0,133.43,133.41,20.1]
[1720414825130,6.6047,133.42,133.41,0.1]
[1720414825315,6.7747,133.42,133.41,0.1]
[1720414827228,100.0,133.32,133.31,0.1]
[1720414827727,100.0,133.34,133.31,0.1]
[1720414827917,100.0,133.36,133.31,0.1]
[1720414828119,6.6235,133.41,133.32,37.8]
[1720414828314,100.0,133.44,133.36,37.8]
[1720414828535,100.0,133.46,133.38,37.8]
[1720414828707,100.0,133.45,133.37,37.8]
[1720414828906,100.0,133.45,133.38,20.0]
[1720414830132,100.0,133.42,133.38,20.0]
[1720414830340,100.0,133.5,133.41,37.8]
[1720414830635,100.0,133.5,133.42,20.17]
[1720414830936,106.391,133.57,133.43,0.17]
[1720414831132,100.0,133.53,133.43,0.17]
[1720414831331,6.391,133.57,133.43,0.17]
[1720414831332,100.0,133.55,133.43,0.17]
[1720414831537,100.0,133.55,133.42,0.17]
[1720414831726,100.0,133.5,133.42,0.17]
[1720414832433,100.0,133.48,133.42,0.17]
[1720414832929,6.391,133.57,133.39,23.207]
[1720414832930,100.0,133.45,133.39,23.207]
[1720414833138,100.0,133.49,133.39,23.207]
[1720414834309,100.0,133.49,133.4,20.17]
[1720414834515,100.0,133.47,133.4,20.0]
[1720414834818,0.17,133.5,133.4,20.0]
[1720414834819,100.0,133.45,133.4,20.0]
[1720414835913,100.0,133.43,133.4,20.0]
[1720414836119,100.0,133.43,133.38,20.0]
[1720414836924,100.0,133.41,133.35,23.2584]
[1720414837311,6.6636,133.49,133.35,23.2584]
[1720414837512,100.0,133.44,133.35,23.2584]
[1720414837736,100.0,133.46,133.35,29.24814503]
[1720414837920,100.0,133.46,133.36,1.89624521]
[1720414838235,100.0,133.44,133.36,21.89624521]
[1720414838433,100.0,133.44,133.37,0.17]
[1720414838634,100.0,133.44,133.38,2.27543738]
[1720414838933,100.0,133.44,133.38,22.27543738]
[1720414839437,100.0,133.46,133.39,0.17]
[1720414839636,100.0,133.46,133.38,22.27543738]
[1720414840027,100.0,133.44,133.38,22.27543738]
[1720414840414,100.0,133.42,133.38,20.0]
[1720414840843,100.0,133.42,133.37,42.56]
[1720414841013,100.0,133.4,133.35,29.24814503]
[1720414841215,100.0,133.4,133.36,1.8963387]
[1720414841711,100.0,133.4,133.35,5.98974503]
[1720414842018,100.0,133.4,133.31,0.1]
[1720414842220,100.0,133.4,133.32,1.89680772]
[1720414843411,100.0,133.42,133.32,1.89680772]
[1720414843632,100.0,133.44,133.33,7.5001]
[1720414843827,100.0,133.44,133.34,27.4996]
[1720414844049,100.0,133.44,133.36,42.56]
[1720414844217,100.0,133.44,133.37,22.44575604]
[1720414844413,100.0,133.46,133.38,22.9212]
[1720414844619,100.0,133.46,133.39,20.17]
[1720414845821,100.0,133.44,133.39,20.17]
[1720414846348,100.0,133.42,133.39,20.0]
[1720414846515,100.0,133.4,133.34,22.5211]
[1720414847722,100.0,133.4,133.35,20.0]
[1720414848557,100.0,133.42,133.35,20.0]
[1720414849132,100.0,133.4,133.35,20.0]
[1720414850256,100.0,133.42,133.35,20.0]
[1720414850424,100.0,133.42,133.36,0.17]
[1720414850628,100.0,133.42,133.36,42.73]
[1720414850830,6.6543,133.47,133.37,21.89621123]
[1720414851051,100.0,133.47,133.38,0.17]
[1720414851258,100.0,133.44,133.38,0.17]
[1720414852051,100.0,133.46,133.38,0.17]
[1720414855036,6.06290955,133.59,133.42,43.9613]
[1720414855246,100.0,133.61,133.49,50.0509]
[1720414855552,100.0,133.58,133.5,9.09054078]
[1720414855759,100.0,133.54,133.51,20.0]
[1720414856061,100.0,133.58,133.51,20.0]
[1720414856221,6.3667,133.65,133.51,20.0]
[1720414856222,100.0,133.56,133.51,20.0]
[1720414856421,100.0,133.58,133.51,20.0]
[1720414856828,100.0,133.53,133.51,20.0]
[1720414857357,100.0,133.53,133.46,16.88061405]
[1720414857653,100.0,133.51,133.44,6.0045]
[1720414857861,100.0,133.51,133.45,1.89579653]
[1720414858172,100.0,133.53,133.44,6.0045]
[1720414858372,100.0,133.6,133.45,16.2692]
[1720414858534,6.2551,133.66,133.5,50.0505]
[1720414858738,100.0,133.61,133.51,21.21997223]
[1720414858937,100.0,133.59,133.51,21.21997223]
[1720414859263,100.0,133.59,133.52,20.17]
[1720414859459,100.0,133.61,133.53,19.32584432]
[1720414859663,100.0,133.61,133.54,20.0]
[1720414859968,100.0,133.58,133.54,20.0]
[1720414860164,100.0,133.54,133.51,20.0]
[1720414860329,100.0,133.56,133.47,20.0]
[1720414860530,100.0,133.56,133.48,1.89447484]
[1720414861036,100.0,133.6,133.48,7.4915]
[1720414861362,100.0,133.6,133.49,22.06443732]
[1720414861663,100.0,133.58,133.49,22.06443732]
[1720414861970,100.0,133.6,133.49,30.91699219]
[1720414862456,100.0,133.57,133.49,30.91699219]
[1720414863359,100.0,133.59,133.49,41.23661511]
[1720414863666,6.2551,133.66,133.5,21.06647811]
[1720414863667,100.0,133.62,133.5,21.06647811]
[1720414863839,100.0,133.62,133.51,27.6598]
[1720414864039,100.0,133.62,133.52,36.74883499]
[1720414864235,100.0,133.62,133.53,20.17]
[1720414864442,100.0,133.62,133.53,20.0]
[1720414865340,100.0,133.6,133.53,20.0]
[1720414865555,100.0,133.62,133.53,20.0]
[1720414865741,100.0,133.58,133.53,20.0]
[1720414865950,100.0,133.6,133.53,20.0]
[1720414866344,100.0,133.58,133.53,20.0]
[1720414866538,100.0,133.6,133.53,20.0]
[1720414866744,100.0,133.57,133.53,20.0]
[1720414866940,6.2551,133.66,133.52,8.85255487]
[1720414866941,100.0,133.6,133.52,8.85255487]
[1720414867143,100.0,133.54,133.48,16.646]
[1720414867444,100.0,133.52,133.46,15.06295487]
[1720414867652,100.0,133.54,133.46,15.06295487]
[1720414868446,100.0,133.54,133.47,20.0]
[1720414869869,26.119,133.59,133.47,20.0]
[1720414869870,100.0,133.58,133.47,20.0]
[1720414870039,0.17,133.57,133.47,28.85255487]
[1720414870237,100.0,133.56,133.47,71.41255487]
[1720414870439,100.0,133.54,133.47,71.41255487]
[1720414871665,100.0,133.58,133.47,71.41255487]
[1720414871870,100.0,133.58,133.49,15.4991]
[1720414872171,6.2521,133.63,133.5,20.17]
[1720414872172,100.0,133.6,133.5,20.17]
[1720414872345,106.2521,133.63,133.5,20.17]
[1720414872541,100.0,133.61,133.5,20.17]
[1720414872745,100.0,133.61,133.51,42.56]
[1720414872950,100.0,133.61,133.53,6.2318]
[1720414873147,100.0,133.61,133.56,15.6682]
[1720414873349,100.0,133.65,133.57,20.17]
[1720414873557,100.0,133.68,133.57,20.17]
[1720414873767,100.0,133.65,133.57,20.17]
[1720414874774,100.0,133.65,133.58,8.85255487]
[1720414874945,100.0,133.65,133.59,20.0]
[1720414875150,100.0,133.67,133.59,71.41255487]
[1720414875364,100.0,133.67,133.6,8.85255487]
[1720414875567,100.0,133.67,133.61,20.0]
[1720414876247,100.1,133.69,133.61,26.4888]
[1720414876468,0.1,133.69,133.64,42.56]
[1720414876770,0.8725608,133.7,133.65,44.79185487]
[1720414876975,100.0,133.73,133.65,44.79185487]
[1720414877775,100.0,133.77,133.65,54.76192223]
[1720414879042,6.5232,133.79,133.65,54.76192223]
[1720414879043,100.0,133.74,133.65,54.76192223]
[1720414879248,100.0,133.76,133.65,54.76192223]
[1720414879667,100.0,133.74,133.65,54.76192223]
[1720414879872,100.0,133.76,133.65,54.76192223]
[1720414880077,100.0,133.77,133.65,54.76192223]
[1720414880370,100.0,133.77,133.69,6.1318]
[1720414880568,100.0,133.77,133.7,20.17]
[1720414880753,100.0,133.77,133.7,29.02255487]
[1720414881148,0.1,133.79,133.7,29.02255487]
[1720414882063,6.1065,133.87,133.72,50.038]
[1720414882374,100.0,133.87,133.76,42.56]
[1720414882577,100.0,133.87,133.78,16.4481]
[1720414882748,100.0,133.87,133.79,20.17]
[1720414883162,0.1,133.89,133.8,6.1185]
[1720414883370,0.1,133.89,133.81,20.17]
[1720414883553,100.0,133.88,133.81,29.02255487]
[1720414883873,0.1,133.89,133.81,20.17]
[1720414884094,100.0,133.88,133.81,20.0]
[1720414884649,100.0,133.86,133.81,20.0]
[1720414884855,100.8725608,133.84,133.81,20.0]
[1720414885079,0.8725608,133.84,133.81,20.0]
[1720414885948,0.8725608,133.84,133.82,0.17]
[1720414887892,0.8725608,133.84,133.81,20.0]
[1720414888771,0.1,133.89,133.82,0.17]
[1720414888985,100.0,133.94,133.83,8.85255487]
[1720414889190,100.0,133.94,133.84,30.14006736]
[1720414889477,100.0,133.94,133.85,8.85255487]
[1720414889695,100.0,133.94,133.86,20.17]
[1720414889990,100.0,133.92,133.86,20.17]
[1720414890287,100.0,133.92,133.86,20.0]
[1720414890464,100.0,133.9,133.86,20.0]
[1720414890667,100.0,133.9,133.85,8.85255487]
[1720414890981,100.0,133.9,133.78,456.6829]
[1720414891182,100.0,133.86,133.81,9.97006736]
[1720414891382,100.0,133.88,133.81,9.97006736]
[1720414891573,100.0,133.86,133.81,9.97006736]
[1720414891963,100.0,133.88,133.81,9.97006736]
[1720414892167,100.0,133.92,133.81,18.82262223]
[1720414893091,7.0532608,133.97,133.81,18.82262223]
[1720414893092,100.0,133.86,133.81,9.97006736]
[1720414893267,100.0,133.9,133.81,9.97006736]
[1720414893471,100.0,133.91,133.81,9.97006736]
[1720414893885,100.0,133.91,133.81,18.82262223]
[1720414894099,100.0,133.91,133.82,8.85255487]
[1720414894292,100.0,133.91,133.83,10.14006736]
[1720414894598,100.0,133.91,133.84,8.85255487]
[1720414894787,100.0,133.91,133.85,20.17]
[1720414894978,100.0,133.87,133.85,20.0]
[1720414895181,100.0,133.87,133.81,20.0]
[1720414896175,100.0,133.85,133.8,5.84038312]
[1720414896374,100.0,133.83,133.77,51.72]
[1720414896575,100.0,133.83,133.76,6.3633]
[1720414896983,100.0,133.83,133.78,22.33118131]
[1720414897377,100.0,133.81,133.76,6.3633]
[1720414897579,100.0,133.81,133.74,16.3399]
[1720414898805,100.0,133.79,133.74,16.3399]
[1720414899117,100.0,133.81,133.74,16.3399]
[1720414899804,100.0,133.82,133.74,16.3399]
[1720414900112,100.0,133.8,133.74,16.3399]
[1720414900395,100.0,133.78,133.75,20.0]
[1720414900606,100.0,133.8,133.75,20.0]
[1720414901682,100.0,133.82,133.75,20.0]
[1720414902286,100.0,133.84,133.76,0.17]
[1720414904189,100.0,133.8,133.75,20.0]
[1720414904692,100.0,133.82,133.75,20.0]
[1720414904889,100.0,133.82,133.76,0.17]
[1720414905102,100.0,133.82,133.76,8.1558882]
[1720414905410,100.0,133.86,133.78,22.823]
[1720414905582,100.0,133.86,133.79,20.0]
[1720414906490,100.0,133.88,133.79,20.0]
[1720414906881,100.0,133.88,133.8,0.17]
[1720414907088,100.0,133.88,133.79,20.0]
[1720414907292,100.0,133.88,133.8,0.17]
[1720414907987,100.0,133.9,133.8,0.17]
[1720414908507,100.0,133.9,133.8,8.1558882]
[1720414908680,100.0,133.9,133.81,20.0]
[1720414908884,100.0,133.9,133.82,0.17]
[1720414909079,100.0,133.85,133.81,20.0]
[1720414909388,100.0,133.89,133.81,20.0]
[1720414910198,100.0,133.85,133.81,20.0]
[1720414910405,100.0,133.87,133.79,20.0]
[1720414910601,100.0,133.87,133.79,26.07738525]
[1720414910920,100.0,133.87,133.8,0.17]
[1720414911286,100.0,133.89,133.8,0.17]
[1720414911687,100.0,133.86,133.8,0.17]
[1720414912107,100.0,133.9,133.8,8.1558882]
[1720414912290,100.0,133.87,133.81,20.0]
[1720414912616,6.6179,133.94,133.81,20.0]
[1720414912617,100.0,133.85,133.81,20.0]
[1720414913114,100.0,133.89,133.81,20.0]
[1720414913319,100.0,133.89,133.82,0.17]
[1720414913614,100.0,133.89,133.81,20.0]
[1720414914715,100.0,133.87,133.81,20.0]
[1720414915110,100.0,133.89,133.81,20.0]
[1720414915525,100.0,133.89,133.81,27.9858882]
[1720414915693,100.0,133.89,133.81,20.0]
[1720414915891,100.0,133.89,133.82,7.9858882]
[1720414916123,100.0,133.89,133.83,20.0]
[1720414918030,100.0,133.89,133.83,27.9858882]
[1720414918408,100.0,133.91,133.83,27.9858882]
[1720414919038,0.8725608,133.97,133.84,31.0622882]
[1720414919039,100.0,133.93,133.84,31.0622882]
[1720414919217,100.0,133.93,133.85,20.0]
[1720414919534,100.0,133.89,133.85,20.0]
[1720414919735,100.0,133.92,133.85,20.0]
[1720414920419,100.0,133.9,133.85,27.9858882]
[1720414920610,100.0,133.88,133.85,7.9858882]
[1720414921012,100.0,133.91,133.85,7.9858882]
[1720414921209,100.0,133.93,133.85,7.9858882]
[1720414922130,100.0,133.93,133.86,20.0]
[1720414922333,100.0,133.95,133.86,27.9858882]
[1720414922538,100.8725608,133.97,133.87,8.1558882]
[1720414922837,100.8725608,133.97,133.89,6.5934]
[1720414923043,0.1,133.99,133.9,86.7809882]
[1720414923247,100.0,134.01,133.93,22.8985]
[1720414923536,100.0,134.04,133.95,22.8985]
[1720414923742,100.0,134.04,133.96,28.1558882]
[1720414924109,100.0,134.06,133.96,28.1558882]
[1720414924317,0.1,134.09,133.96,28.1558882]
[1720414924318,0.1,134.09,133.99,42.32]
[1720414924610,100.0,134.08,134.0,28.1558882]
[1720414924831,100.0,134.06,134.0,28.1558882]
[1720414925038,100.0,134.06,134.0,27.9858882]
[1720414925319,100.0,134.04,134.0,20.0]
[1720414925613,100.0,134.02,133.95,22.8985]
[1720414925822,100.0,134.02,133.84,42.32]
[1720414925823,100.0,134.0,133.93,7.9858882]
[1720414926030,100.0,134.0,133.92,9.03117848]
[1720414926031,100.0,133.96,133.86,21.7131]
[1720414926311,100.0,133.94,133.88,7.9858882]
[1720414926511,100.0,133.92,133.88,7.9858882]
[1720414926731,100.0,133.92,133.86,21.7131]
[1720414927846,100.0,133.96,133.86,29.89211388]
[1720414928208,42.32,134.07,133.86,29.89211388]
[1720414928209,100.0,134.01,133.88,42.32]
[1720414928520,100.0,134.01,133.92,42.32]
[1720414928745,100.0,134.02,133.93,21.956]
[1720414929045,22.0079,134.09,133.93,29.9418882]
[1720414929046,100.0,133.98,133.93,29.9418882]
[1720414929211,100.0,133.98,133.93,21.956]
[1720414929412,100.0,133.98,133.94,20.0]
[1720414929632,100.0,134.01,133.94,20.0]
[1720414931121,100.0,133.97,133.89,14.3841882]
[1720414931640,100.0,133.97,133.89,6.3983]
[1720414931938,100.0,133.97,133.89,14.3841882]
[1720414932113,100.0,134.01,133.9,7.9858882]
[1720414932314,100.0,134.06,133.93,16.6449]
[1720414932542,100.0,134.06,133.96,42.32]
[1720414932833,106.4105,134.09,133.97,20.0]
[1720414933045,100.0,134.03,133.97,20.0]
[1720414933418,100.0,134.06,133.97,20.0]
[1720414933619,100.0,134.07,133.96,6.4926]
[1720414933844,0.1,134.09,134.0,42.32]
[1720414934158,0.1,134.09,134.01,20.17]
[1720414934442,0.1,134.09,134.02,15.4275]
[1720414934646,0.8725608,134.11,134.05,42.32]
[1720414934820,0.1,134.19,134.06,20.17]
[1720414934821,100.0,134.17,134.06,20.17]
[1720414935018,100.0,134.15,134.06,45.80388538]
[1720414935219,100.0,134.14,134.06,45.80388538]
[1720414935748,100.0,134.17,134.06,37.27379097]
[1720414936429,100.1,134.19,134.09,42.32]
[1720414936673,100.1,134.19,134.1,20.0]
[1720414936821,100.0,134.14,134.1,20.0]
[1720414937319,100.1,134.19,134.09,0.17]
[1720414937519,100.0,134.16,134.08,20.0]
[1720414937740,100.0,134.14,134.08,20.0]
[1720414938117,100.0,134.12,134.08,20.0]
[1720414938320,100.0,134.12,134.03,42.32]
[1720414938518,100.0,134.12,134.02,66.86540277]
[1720414938740,100.0,134.1,134.02,66.86540277]
[1720414939045,100.0,134.12,134.02,24.54540277]
[1720414939215,100.0,134.12,134.03,9.11790277]
[1720414939522,100.0,134.13,134.03,9.11790277]
[1720414939951,100.0,134.13,134.03,59.42379097]
[1720414940251,100.0,134.12,134.04,20.0]
[1720414940454,100.0,134.14,134.04,20.0]
[1720414940659,100.0,134.1,134.04,20.0]
[1720414942327,100.0,134.1,134.04,29.11790277]
[1720414942533,100.0,134.16,134.04,29.11790277]
[1720414942747,100.0,134.11,134.05,0.17]
[1720414942950,100.0,134.11,134.05,8.1558882]
[1720414943155,100.0,134.11,134.06,20.0]
[1720414943467,100.0,134.17,134.06,27.9858882]
[1720414943625,100.0,134.17,134.07,0.17]
[1720414943825,100.0,134.17,134.07,8.1558882]
[1720414944027,100.0,134.14,134.07,8.1558882]
[1720414944328,100.0,134.14,134.08,20.0]
[1720414946334,0.1,134.19,134.09,22.9895]
[1720414946554,100.0,134.21,134.13,51.54]
[1720414946866,100.0,134.21,134.14,31.056625]
[1720414947029,100.0,134.21,134.14,30.886625]
[1720414947233,100.0,134.18,134.14,30.886625]
[1720414947547,0.91687839,134.24,134.14,30.886625]
[1720414947548,100.0,134.17,134.14,30.886625]
[1720414948374,0.91687839,134.24,134.14,30.886625]
[1720414948375,100.0,134.21,134.14,30.886625]
[1720414948684,100.0,134.18,134.14,30.886625]
[1720414949444,100.0,134.23,134.17,51.54]
[1720414949643,0.91687839,134.24,134.18,20.17]
[1720414949856,100.0,134.22,134.18,20.17]
[1720414950064,100.91687839,134.24,134.18,30.886625]
[1720414950244,100.91687839,134.24,134.18,20.0]
[1720414950575,100.0,134.22,134.16,20.0]
[1720414950947,100.0,134.18,134.16,20.0]